bitfinex/quotes_SOLUSD_20250210
["timestamp","ask_amount","ask_price","bid_price","bid_amount"]
[1739208164655,0.01401595,202.95,202.94,177.81898738]
[1739208166302,0.03,202.97,202.96,1.0]
[1739208166461,0.03,202.97,202.96,168.83742325]
[1739208166671,0.03,202.97,202.96,168.0987663]
[1739208167671,0.03,202.97,202.96,153.56142777]
[1739208169004,0.03,202.97,202.96,146.1]
[1739208171802,0.03,202.97,202.96,160.51184853]
[1739208172288,0.03,202.97,202.96,159.51184853]
[1739208172590,0.03,202.97,202.96,160.51184853]
[1739208172790,0.03,202.97,202.96,161.51184853]
[1739208175286,0.03,202.97,202.96,161.63733853]
[1739208175495,0.03,202.97,202.96,161.88831853]
[1739208175795,0.063,202.99,202.98,15.53733853]
[1739208175973,0.063,202.99,202.98,23.73732858]
[1739208176170,0.063,202.99,202.98,23.98830858]
[1739208176373,0.03,203.04,203.03,7.46142777]
[1739208176573,0.03,203.04,203.03,133.56142777]
[1739208177494,0.03,203.04,203.01,7.46142777]
[1739208177873,0.03,203.04,203.02,7.46142777]
[1739208179589,0.03,203.04,203.01,7.46142777]
[1739208180603,0.03,203.04,202.99,7.46142777]
[1739208182734,0.25098,203.03,202.97,7.46142777]
[1739208184423,0.03,203.04,202.99,7.46142777]
[1739208184632,0.03,203.04,203.0,7.46142777]
[1739208187223,0.25098,203.03,202.96,7.46142777]
[1739208187429,0.03,203.04,202.98,27.46142777]
[1739208187936,0.25098,203.03,202.98,20.0]
[1739208189037,0.25098,203.03,202.96,7.46142777]
[1739208189609,0.25098,203.01,202.95,81.2]
[1739208189814,0.25098,203.01,202.97,0.063]
[1739208191939,0.25098,203.02,202.97,0.063]
[1739208192339,7.71240777,203.02,202.97,0.063]
[1739208192523,12.63810777,203.02,202.97,0.063]
[1739208194342,7.71240777,203.0,202.97,0.063]
[1739208194539,0.25098,202.98,202.97,0.063]
[1739208195219,19.82062853,202.98,202.97,0.063]
[1739208195629,6.1578,202.98,202.97,0.063]
[1739208195939,1.5358,202.99,202.97,0.063]
[1739208197921,0.25098,202.98,202.97,0.063]
[1739208201652,1.5358,202.99,202.97,0.063]
[1739208201943,6.1578,203.03,202.98,7.46142777]
[1739208202127,0.25098,203.02,202.98,7.46142777]
[1739208202325,0.25098,203.02,202.97,7.52442777]
[1739208202731,0.03,202.99,202.97,7.52442777]
[1739208203849,0.03,202.99,202.98,7.46142777]
[1739208206031,0.03,202.99,202.98,133.56142777]
[1739208210362,0.03,202.99,202.98,146.9732763]
[1739208210666,0.03,202.99,202.98,148.6354763]
[1739208214466,0.03,202.99,202.98,148.6984763]
[1739208216669,0.03,202.99,202.98,148.8239663]
[1739208218144,0.03,203.04,203.01,20.0]
[1739208218344,0.03,203.04,203.03,7.46142777]
[1739208218676,0.03,203.04,203.03,133.56142777]
[1739208222993,0.03,203.04,203.03,88.66142777]
[1739208228871,0.03,203.04,203.03,133.56142777]
[1739208229683,0.03,203.08,203.06,20.0]
[1739208229996,0.03,203.08,203.07,8.19979102]
[1739208234802,0.03,203.08,203.07,134.29979102]
[1739208234994,0.03,203.08,203.07,133.56142777]
[1739208240902,22.06461853,203.08,203.06,7.46142777]
[1739208241103,0.37647,203.07,202.98,0.063]
[1739208241487,0.12549,203.05,202.98,0.063]
[1739208242205,0.37647,203.03,202.98,0.063]
[1739208243304,5.30187,203.03,202.98,0.063]
[1739208246512,25.7979763,203.06,202.98,0.063]
[1739208246809,0.37647,203.05,202.98,0.063]
[1739208247792,0.25098,203.03,202.98,0.063]
[1739208247990,0.37647,203.03,202.98,0.063]
[1739208249387,0.25098,203.03,202.98,0.063]
[1739208249592,13.41184853,203.06,202.98,0.063]
[1739208249593,12.38622777,203.06,202.98,0.063]
[1739208249895,0.37647,203.05,202.98,0.063]
[1739208251203,5.30137,203.05,202.98,0.063]
[1739208252410,0.37647,203.05,202.98,0.063]
[1739208252709,7.49142777,203.06,203.03,7.46142777]
[1739208252710,0.03,203.06,203.03,7.46142777]
[1739208252907,0.03,203.06,203.05,20.0]
[1739208253100,0.03,203.06,203.05,27.46142777]
[1739208255715,0.03,203.06,203.05,153.56142777]
[1739208258521,0.03,203.06,203.05,108.66142777]
[1739208261022,0.03,203.08,203.05,166.9732763]
[1739208261227,0.03,203.08,203.07,7.46142777]
[1739208264640,0.03,203.08,203.07,133.56142777]
[1739208265128,0.03,203.08,203.07,126.1]
[1739208266027,0.03,203.08,203.07,139.51184853]
[1739208267226,0.03,203.14,203.1,33.41184853]
[1739208267536,0.03,203.14,203.13,7.46142777]
[1739208267704,0.03,203.14,203.13,66.51135707]
[1739208268437,0.03,203.14,203.13,67.88782707]
[1739208268603,0.03,203.14,203.13,69.11811131]
[1739208270816,0.03,203.25,203.16,0.37647]
[1739208270999,0.03,203.25,203.24,7.46142777]
[1739208271404,0.03,203.25,203.23,7.46142777]
[1739208271738,0.03,203.25,203.2,7.46142777]
[1739208272608,0.03,203.25,203.19,7.46142777]
[1739208273213,0.03,203.25,203.21,20.0]
[1739208273708,0.03,203.25,203.2,20.0]
[1739208276241,0.28098,203.25,203.2,20.0]
[1739208276640,0.03,203.25,203.2,27.46142777]
[1739208277312,0.03,203.25,203.2,20.0]
[1739208277727,0.03,203.25,203.2,27.46142777]
[1739208279213,0.03,203.25,203.21,7.46142777]
[1739208280936,0.03,203.25,203.2,27.46142777]
[1739208281438,0.03,203.25,203.2,20.0]
[1739208282238,7.49142777,203.25,203.2,20.0]
[1739208282435,0.03,203.25,203.2,20.0]
[1739208283731,13.66282853,203.24,203.18,7.46142777]
[1739208283949,13.66282853,203.22,203.15,44.9]
[1739208284144,0.25098,203.22,203.16,7.46142777]
[1739208284309,0.25098,203.22,203.17,7.46142777]
[1739208284947,7.46142777,203.24,203.17,7.46142777]
[1739208285244,0.03,203.25,203.18,7.46142777]
[1739208285541,7.49142777,203.25,203.17,7.46142777]
[1739208285723,0.25098,203.24,203.17,7.46142777]
[1739208286448,7.49142777,203.25,203.18,7.46142777]
[1739208286743,0.03,203.25,203.2,7.46142777]
[1739208287735,7.49142777,203.25,203.18,27.46142777]
[1739208288428,7.49142777,203.25,203.18,7.46142777]
[1739208288738,0.25098,203.24,203.16,7.46142777]
[1739208289038,7.46142777,203.23,203.16,7.46142777]
[1739208290541,0.25098,203.22,203.16,7.46142777]
[1739208290834,7.46142777,203.21,203.15,126.1]
[1739208293945,0.03,203.25,203.19,7.46142777]
[1739208294648,0.28098,203.25,203.19,7.46142777]
[1739208295447,0.03,203.25,203.2,7.46142777]
[1739208298253,0.03,203.25,203.21,7.46142777]
[1739208298431,0.03,203.25,203.21,8.19934497]
[1739208298633,0.03,203.25,203.21,7.46142777]
[1739208299029,0.03,203.25,203.23,7.46142777]
[1739208299562,0.03,203.25,203.24,7.46142777]
[1739208300430,7.46142777,203.36,203.24,52.36142777]
[1739208300634,15.52172777,203.37,203.29,7.46142777]
[1739208300836,7.46142777,203.35,203.28,7.46142777]
[1739208301044,7.46142777,203.35,203.27,7.46142777]
[1739208301241,0.25098,203.34,203.25,44.9]
[1739208301754,7.46142777,203.3,203.25,44.9]
[1739208302050,7.46142777,203.31,203.24,7.46142777]
[1739208302562,7.46142777,203.34,203.27,7.46142777]
[1739208302864,32.23501842,203.38,203.3,20.0]
[1739208303036,32.23501842,203.38,203.35,7.46142777]
[1739208303533,7.68821283,203.44,203.37,7.46142777]
[1739208303737,7.68821283,203.44,203.38,7.46142777]
[1739208304053,0.12549,203.43,203.37,7.46142777]
[1739208304247,5.96142777,203.43,203.36,7.46142777]
[1739208304435,0.12549,203.43,203.37,7.46142777]
[1739208305256,7.71821283,203.46,203.4,7.46142777]
[1739208305444,7.71821283,203.46,203.42,7.46142777]
[1739208305757,7.71821283,203.46,203.41,11.60905162]
[1739208306335,7.71821283,203.46,203.42,11.60905162]
[1739208307027,7.71821283,203.46,203.45,20.0]
[1739208307251,7.71821283,203.46,203.45,31.60905162]
[1739208308352,0.03,203.46,203.45,31.60905162]
[1739208308765,0.03,203.46,203.4,1.57122316]
[1739208308766,0.03,203.46,203.44,11.60905162]
[1739208310757,0.03,203.46,203.45,11.60905162]
[1739208311058,0.03,203.46,203.44,11.60905162]
[1739208311257,0.03,203.46,203.45,20.0]
[1739208311446,0.03,203.46,203.45,31.60905162]
[1739208312354,0.03,203.46,203.45,32.34597636]
[1739208313371,8.0603,203.57,203.45,32.34597636]
[1739208313572,8.0603,203.57,203.53,11.60905162]
[1739208313750,8.0603,203.57,203.52,11.60905162]
[1739208313950,8.0603,203.57,203.53,11.60905162]
[1739208314857,6.5137,203.57,203.53,11.60905162]
[1739208315063,6.5137,203.57,203.54,11.60905162]
[1739208315258,6.5137,203.57,203.55,11.60905162]
[1739208315565,19.34095162,203.62,203.55,11.60905162]
[1739208315872,24.25205162,203.62,203.54,11.60905162]
[1739208316072,11.60905162,203.58,203.51,11.60905162]
[1739208316248,11.60905162,203.59,203.52,11.60905162]
[1739208316577,11.60905162,203.59,203.46,0.73686202]
[1739208316578,25.02090015,203.61,203.54,11.60905162]
[1739208317075,19.34095162,203.62,203.55,11.60905162]
[1739208317263,7.7319,203.62,203.56,11.60905162]
[1739208317647,7.7319,203.62,203.57,11.60905162]
[1739208318472,0.12549,203.61,203.56,11.60905162]
[1739208318669,12.6431,203.62,203.56,11.60905162]
[1739208318867,7.7319,203.62,203.56,11.60905162]
[1739208321271,11.60905162,203.6,203.53,11.60905162]
[1739208321499,4.9076,203.77,203.63,1.0]
[1739208321772,6.1853,203.8,203.72,11.60905162]
[1739208321989,6.1853,203.8,203.75,11.60905162]
[1739208322864,0.12549,203.79,203.75,11.60905162]
[1739208323248,11.60905162,203.84,203.68,0.73604469]
[1739208323249,6.1853,203.85,203.77,11.60905162]
[1739208323666,13.78831853,203.84,203.77,11.60905162]
[1739208324171,0.12549,203.84,203.79,11.60905162]
[1739208324377,6.1853,203.85,203.79,11.60905162]
[1739208324882,0.12549,203.84,203.79,11.60905162]
[1739208326882,25.39737015,203.84,203.77,11.60905162]
[1739208327289,30.30317015,203.84,203.75,11.60905162]
[1739208327782,25.39737015,203.84,203.75,11.60905162]
[1739208328685,11.98552162,203.81,203.74,11.60905162]
[1739208329007,11.60905162,203.83,203.76,11.60905162]
[1739208329190,25.39737015,203.83,203.76,11.60905162]
[1739208329366,11.86003162,203.83,203.76,11.60905162]
[1739208329558,0.25098,203.83,203.77,11.60905162]
[1739208330366,0.25098,203.83,203.76,11.60905162]
[1739208330675,11.60905162,203.83,203.75,11.60905162]
[1739208330977,0.12549,203.82,203.76,11.60905162]
[1739208332152,0.12549,203.82,203.77,11.60905162]
[1739208332486,0.12549,203.83,203.77,11.60905162]
[1739208332675,17.79435162,203.85,203.77,11.60905162]
[1739208332892,0.25098,203.84,203.79,11.60905162]
[1739208333090,6.1853,203.85,203.82,11.60905162]
[1739208333415,11.60905162,203.88,203.81,11.60905162]
[1739208333589,0.03,203.83,203.79,11.60905162]
[1739208333905,0.03,203.83,203.81,11.60905162]
[1739208334108,0.03,203.83,203.8,11.60905162]
[1739208334287,0.03,203.83,203.81,12.34483919]
[1739208334598,0.03,203.83,203.82,11.60905162]
[1739208335678,0.03,203.83,203.82,30.35586591]
[1739208335990,11.60905162,203.98,203.85,20.0]
[1739208336186,11.60905162,204.04,203.97,11.60905162]
[1739208336783,11.60905162,204.06,203.97,11.60905162]
[1739208337099,4.9005,204.07,203.99,11.60905162]
[1739208337409,1.6034,204.14,203.94,11.60905162]
[1739208337410,11.60905162,204.1,204.01,11.60905162]
[1739208337710,18.45453351,204.16,204.08,18.45453351]
[1739208338387,18.45453351,204.14,204.06,18.45453351]
[1739208338789,18.45453351,204.1,204.03,18.45453351]
[1739208339105,18.45453351,204.08,204.01,18.45453351]
[1739208339292,4.8997,204.09,203.98,18.45453351]
[1739208339293,0.12549,204.05,203.98,18.45453351]
[1739208339603,13.66282853,204.03,203.96,18.45453351]
[1739208339774,13.66282853,204.03,203.9,0.73514843]
[1739208339775,18.45453351,204.02,203.94,18.45453351]
[1739208339977,0.12549,204.01,203.94,18.45453351]
[1739208340405,18.45453351,204.02,203.94,18.45453351]
[1739208340987,18.83100351,204.02,203.94,18.45453351]
[1739208341186,18.70551351,204.02,203.94,18.45453351]
[1739208341707,23.60701351,204.02,203.94,18.45453351]
[1739208342010,18.45453351,204.0,203.92,18.45453351]
[1739208342199,18.45453351,203.98,203.9,18.45453351]
[1739208342720,0.25098,203.98,203.92,18.45453351]
[1739208343186,18.45453351,203.96,203.88,18.45453351]
[1739208343383,0.25098,203.95,203.88,18.45453351]
[1739208343689,13.53733853,203.94,203.86,18.45453351]
[1739208343890,13.53733853,203.94,203.75,2.73558332]
[1739208344104,18.45453351,203.92,203.77,20.0]
[1739208344307,31.99187204,203.94,203.78,1.86115829]
[1739208344496,31.99187204,203.94,203.86,18.45453351]
[1739208345004,18.45453351,203.94,203.86,18.45453351]
[1739208345178,6.5509,203.95,203.88,18.45453351]
[1739208345382,4.9028,203.97,203.9,18.45453351]
[1739208345708,1.5247,203.98,203.92,18.45453351]
[1739208345913,13.78831853,203.97,203.9,18.45453351]
[1739208346081,13.78831853,203.95,203.88,18.45453351]
[1739208346281,0.03,203.94,203.88,18.45453351]
[1739208347187,18.48453351,203.94,203.86,18.45453351]
[1739208347387,4.9036,203.93,203.86,18.45453351]
[1739208347594,0.03,203.94,203.9,18.45453351]
[1739208347801,0.03,203.94,203.92,18.45453351]
[1739208348211,0.03,203.94,203.9,18.45453351]
[1739208348385,0.03,203.94,203.88,18.45453351]
[1739208349826,0.03,203.94,203.86,18.45453351]
[1739208350029,0.03,203.94,203.88,18.45453351]
[1739208350320,13.53733853,203.97,203.88,18.45453351]
[1739208350808,5.02769,203.99,203.9,18.45453351]
[1739208351018,13.53733853,203.98,203.9,18.45453351]
[1739208351731,4.9026,203.97,203.9,18.45453351]
[1739208351897,0.12549,203.98,203.9,18.45453351]
[1739208352328,5.15348,203.98,203.9,18.45453351]
[1739208352628,13.41184853,203.99,203.92,18.45453351]
[1739208353923,6.0382,204.01,203.96,18.45453351]
[1739208354230,6.0382,204.01,203.88,1.0]
[1739208354231,19.70102853,204.06,203.98,18.45453351]
[1739208354398,13.78831853,204.05,203.98,18.45453351]
[1739208354602,13.78831853,204.05,204.0,18.45453351]
[1739208354901,13.78831853,204.05,203.98,18.45453351]
[1739208355698,18.68921853,204.05,203.98,18.45453351]
[1739208357020,13.66282853,204.03,203.96,18.45453351]
[1739208357899,18.56412853,204.03,203.96,18.45453351]
[1739208358109,13.66282853,204.03,203.96,18.45453351]
[1739208358302,0.15549,204.05,203.98,18.45453351]
[1739208358525,0.03,204.05,204.0,18.45453351]
[1739208358706,0.03,204.05,203.94,18.45453351]
[1739208358707,0.03,204.05,204.04,18.45453351]
[1739208359138,0.03,204.05,204.02,18.45453351]
[1739208359307,0.03,204.05,204.0,18.45453351]
[1739208359719,0.03,204.05,204.03,18.45453351]
[1739208360238,0.03,204.05,204.04,0.73487778]
[1739208360905,0.03,204.05,204.04,19.18941129]
[1739208361127,6.0382,204.17,204.04,19.18941129]
[1739208361334,6.0382,204.17,204.13,18.45453351]
[1739208361843,6.0382,204.17,204.11,18.45453351]
[1739208362331,13.41184853,204.16,204.09,18.45453351]
[1739208362844,18.45453351,204.21,204.13,18.45453351]
[1739208363247,13.53733853,204.21,204.13,18.45453351]
[1739208363753,0.12549,204.21,204.15,18.45453351]
[1739208363920,23.35043351,204.25,204.17,18.45453351]
[1739208364310,18.45453351,204.23,204.15,18.45453351]
[1739208364532,13.66282853,204.22,204.13,18.45453351]
[1739208364830,18.45453351,204.21,204.13,18.45453351]
[1739208365033,18.45453351,204.21,204.11,18.45453351]
[1739208365230,18.45453351,204.21,204.13,18.45453351]
[1739208365431,18.45453351,204.23,204.13,18.45453351]
[1739208365621,18.45453351,204.23,204.15,18.45453351]
[1739208367250,18.45453351,204.25,204.13,1.0]
[1739208367539,13.66282853,204.28,204.19,18.45453351]
[1739208367953,18.45453351,204.25,204.17,18.45453351]
[1739208368118,23.35003351,204.27,204.17,18.45453351]
[1739208368749,0.25098,204.26,204.17,18.45453351]
[1739208369247,13.66282853,204.26,204.17,18.45453351]
[1739208369431,18.45453351,204.29,204.19,18.45453351]
[1739208369629,23.34963351,204.29,204.19,18.45453351]
[1739208369950,18.45453351,204.25,204.17,18.45453351]
[1739208370253,23.35053351,204.25,204.17,18.45453351]
[1739208370471,13.36209,204.31,204.17,18.45453351]
[1739208370472,23.35013351,204.27,204.17,18.45453351]
[1739208370637,18.45453351,204.27,204.18,0.73440679]
[1739208370840,13.36209,204.31,204.15,18.45453351]
[1739208370841,18.45453351,204.25,204.15,18.45453351]
[1739208371369,18.48453351,204.23,204.13,18.45453351]
[1739208371539,18.48453351,204.23,204.12,0.7343612]
[1739208371540,0.03,204.23,204.17,18.45453351]
[1739208372035,20.00973351,204.27,204.17,18.45453351]
[1739208372232,24.90513351,204.27,204.17,18.45453351]
[1739208372437,6.3809,204.28,204.19,18.45453351]
[1739208372661,6.3809,204.28,204.2,0.73432254]
[1739208373042,6.3809,204.28,204.21,18.45453351]
[1739208373231,0.25098,204.27,204.19,18.45453351]
[1739208373437,18.45453351,204.25,204.17,18.45453351]
[1739208373650,18.45453351,204.25,204.18,0.73445172]
[1739208373861,18.45453351,204.25,204.17,18.45453351]
[1739208374080,18.45453351,204.27,204.18,0.73440427]
[1739208374268,23.35003351,204.27,204.17,18.45453351]
[1739208374458,18.45453351,204.27,204.19,18.45453351]
[1739208374642,6.3809,204.28,204.2,0.73430438]
[1739208374841,18.45453351,204.27,204.19,18.45453351]
[1739208375967,18.45453351,204.27,204.2,0.73437749]
[1739208376162,6.3809,204.28,204.21,18.45453351]
[1739208376358,18.45453351,204.29,204.21,18.45453351]
[1739208376545,6.3121,204.32,204.25,18.45453351]
[1739208376742,6.3121,204.32,204.26,0.73414773]
[1739208377038,18.45453351,204.29,204.21,18.45453351]
[1739208377246,18.45453351,204.27,204.19,18.45453351]
[1739208377455,18.45453351,204.23,204.15,18.45453351]
[1739208377671,18.45453351,204.21,204.13,18.45453351]
[1739208378352,18.45453351,204.15,204.07,18.45453351]
[1739208378650,18.45453351,204.17,204.09,18.45453351]
[1739208378845,18.45453351,204.19,204.11,18.45453351]
[1739208379742,6.3121,204.2,204.13,18.45453351]
[1739208379962,18.45453351,204.19,204.11,18.45453351]
[1739208380165,18.45453351,204.17,204.09,18.45453351]
[1739208380466,18.45453351,204.18,204.1,19.18920829]
[1739208381169,6.3121,204.2,204.12,18.45453351]
[1739208381170,24.76663351,204.2,204.12,18.45453351]
[1739208382356,18.45453351,204.2,204.13,0.73460342]
[1739208382672,18.45453351,204.22,204.14,18.45453351]
[1739208382965,0.03,204.21,204.15,19.18901667]
[1739208383548,0.03,204.21,204.15,18.45453351]
[1739208384354,0.03,204.21,204.16,18.45453351]
[1739208384571,0.03,204.21,204.17,18.45453351]
[1739208385073,0.03,204.21,204.16,18.45453351]
[1739208385553,0.03,204.21,204.17,18.45453351]
[1739208385961,0.03,204.21,204.16,18.45453351]
[1739208386589,0.03,204.21,204.1,0.25098]
[1739208386590,0.03,204.21,204.15,18.45453351]
[1739208386872,18.48453351,204.21,204.13,18.45453351]
[1739208387262,0.03,204.21,204.15,18.45453351]
[1739208387774,0.03,204.21,204.18,18.45453351]
[1739208388151,0.03,204.21,204.2,18.45453351]
[1739208388358,0.03,204.21,204.13,0.25098]
[1739208388359,0.03,204.21,204.18,18.45453351]
[1739208388675,0.03,204.21,204.15,18.45453351]
[1739208389384,0.03,204.21,204.17,18.45453351]
[1739208390180,0.03,204.21,204.19,18.45453351]
[1739208390375,0.03,204.21,204.2,18.45453351]
[1739208391872,0.03,204.21,204.2,11.52080688]
[1739208392464,0.03,204.21,204.2,11.77178688]
[1739208392777,22.72660688,204.35,204.2,11.77178688]
[1739208392983,11.52080688,204.34,204.27,11.52080688]
[1739208393185,11.52080688,204.34,204.26,11.52080688]
[1739208393366,11.52080688,204.33,204.26,11.52080688]
[1739208393570,17.83290688,204.35,204.28,11.52080688]
[1739208393789,7.3121,204.4,204.25,20.0]
[1739208394003,6.3121,204.4,204.34,11.52080688]
[1739208395174,6.3121,204.4,204.28,0.73385825]
[1739208395175,11.52080688,204.39,204.32,11.52080688]
[1739208395562,18.41517197,204.37,204.3,18.41517197]
[1739208395763,18.41517197,204.37,204.29,18.41517197]
[1739208395959,11.2045,204.4,204.23,0.73399133]
[1739208396278,13.66282853,204.39,204.29,18.41517197]
[1739208396484,18.41517197,204.36,204.29,18.41517197]
[1739208396885,18.41517197,204.37,204.29,18.41517197]
[1739208397261,4.8931,204.37,204.3,18.41517197]
[1739208397469,1.0,204.28,204.21,0.063]
[1739208397764,18.41517197,204.22,204.21,0.063]
[1739208398470,18.41517197,204.24,204.21,0.063]
[1739208398871,18.41517197,204.22,204.21,0.063]
[1739208399071,37.1000905,204.22,204.21,0.063]
[1739208399282,37.1000905,204.22,204.21,0.0001]
[1739208399681,36.9746005,204.22,204.21,0.0001]
[1739208400184,23.56275197,204.22,204.21,0.0001]
[1739208401576,18.41517197,204.22,204.21,0.0001]
[1739208403200,18.41517197,204.24,204.21,0.0001]
[1739208403867,18.41517197,204.22,204.21,0.0001]
[1739208405203,18.41517197,204.24,204.21,0.0001]
[1739208405368,18.41517197,204.22,204.21,0.0001]
[1739208406601,18.41517197,204.24,204.21,0.0001]
[1739208407475,0.25098,204.31,204.21,0.0001]
[1739208407476,18.41517197,204.28,204.21,18.41527197]
[1739208407686,6.0256,204.34,204.21,18.41527197]
[1739208407687,18.41517197,204.3,204.21,18.41527197]
[1739208408802,18.41517197,204.3,204.23,18.41517197]
[1739208411105,18.41517197,204.32,204.23,18.41517197]
[1739208411507,18.41517197,204.32,204.21,0.73434056]
[1739208411508,18.41517197,204.32,204.24,18.41517197]
[1739208412507,18.41517197,204.32,204.21,0.73434056]
[1739208412508,18.41517197,204.31,204.23,18.41517197]
[1739208412687,18.41517197,204.3,204.23,18.41517197]
[1739208414815,18.41517197,204.27,204.21,0.0001]
[1739208415177,4.8945,204.31,204.21,0.0001]
[1739208415178,18.41517197,204.26,204.21,0.0001]
[1739208415382,18.41517197,204.25,204.21,0.0001]
[1739208415699,11.52352725,204.24,204.21,0.0001]
[1739208416007,11.52352725,204.23,204.21,0.0001]
[1739208416677,11.52352725,204.22,204.21,0.0001]
[1739208417614,18.44314708,204.22,204.21,0.0001]
[1739208418894,18.69412708,204.27,204.21,0.0001]
[1739208418895,18.44314708,204.23,204.21,0.0001]
[1739208419205,18.44314708,204.24,204.21,0.0001]
[1739208420014,18.44314708,204.23,204.21,0.0001]
[1739208420694,18.44314708,204.24,204.21,0.0001]
[1739208421021,18.44314708,204.22,204.21,0.0001]
[1739208421392,18.69412708,204.22,204.21,0.0001]
[1739208422607,37.12806561,204.22,204.21,0.0001]
[1739208423012,0.25098,204.2,204.06,1.593]
[1739208423198,18.44314708,204.14,204.07,18.44314708]
[1739208423385,18.44314708,204.15,204.08,18.44314708]
[1739208423585,18.44314708,204.16,204.08,18.44314708]
[1739208423900,18.44314708,204.16,204.09,18.44314708]
[1739208424096,18.44314708,204.13,204.05,0.063]
[1739208424290,18.44314708,204.12,204.05,0.063]
[1739208424918,18.44314708,204.13,204.05,18.50614708]
[1739208425415,18.44314708,204.14,204.06,18.44314708]
[1739208425590,18.44314708,204.13,204.06,18.44314708]
[1739208427119,18.44314708,204.17,204.08,18.44314708]
[1739208427498,18.44314708,204.18,204.1,18.44314708]
[1739208427822,18.44314708,204.19,204.1,18.44314708]
[1739208428187,18.44314708,204.16,204.09,18.44314708]
[1739208428511,18.44314708,204.16,204.08,20.0]
[1739208428814,18.44314708,204.17,204.09,18.44314708]
[1739208428996,18.44314708,204.17,204.1,18.44314708]
[1739208429191,18.44314708,204.15,204.08,18.44314708]
[1739208431411,18.44314708,204.17,204.08,18.44314708]
[1739208431644,18.44314708,204.18,204.11,18.44314708]
[1739208431810,18.44314708,204.21,204.13,18.44314708]
[1739208432118,18.44314708,204.19,204.11,18.44314708]
[1739208434696,23.34054708,204.19,204.11,18.44314708]
[1739208436025,18.44314708,204.17,204.11,18.44314708]
[1739208436393,18.44314708,204.17,204.09,18.44314708]
[1739208437718,18.44314708,204.17,204.09,11.53188668]
[1739208437719,11.53188668,204.17,204.09,11.53188668]
[1739208437915,11.53188668,204.19,204.11,11.53188668]
[1739208438318,11.53188668,204.18,204.11,11.53188668]
[1739208440810,11.53188668,204.17,204.09,11.53188668]
[1739208441125,11.53188668,204.17,204.05,0.063]
[1739208441126,0.37647,204.16,204.05,11.59488668]
[1739208441305,11.53188668,204.11,204.05,0.063]
[1739208441702,11.53188668,204.12,204.05,0.063]
[1739208442500,11.53188668,204.11,204.05,0.063]
[1739208443534,11.53188668,204.09,204.05,0.063]
[1739208443734,11.53188668,204.06,204.05,0.063]
[1739208444640,11.78286668,204.06,204.05,0.063]
[1739208445013,16.68336668,204.06,204.05,0.063]
[1739208445212,30.22070521,204.06,204.05,0.063]
[1739208445454,11.53188668,204.06,204.05,0.063]
[1739208445629,11.53188668,204.08,204.05,0.063]
[1739208446633,11.53188668,204.09,204.05,0.063]
[1739208446928,11.78286668,204.06,204.05,0.063]
[1739208447309,11.53188668,204.06,204.05,0.063]
[1739208448129,11.53188668,204.09,204.05,0.063]
[1739208448331,11.53188668,204.06,204.05,0.063]
[1739208450820,11.53188668,204.07,204.05,0.063]
[1739208452246,11.53188668,204.06,204.05,0.063]
[1739208453840,30.22070521,204.06,204.05,0.063]
[1739208454856,41.75259189,204.06,204.05,0.063]
[1739208455724,42.75259189,204.06,204.0,0.063]
[1739208456053,25.32020521,204.01,204.0,0.063]
[1739208456356,31.50650521,204.01,204.0,0.063]
[1739208458043,36.40820521,204.01,204.0,0.063]
[1739208459957,31.50650521,204.01,204.0,0.063]
[1739208460629,36.40820521,204.01,204.0,0.063]
[1739208463345,36.40820521,204.01,203.92,0.063]
[1739208463346,13.78831853,204.0,203.92,0.063]
[1739208463545,11.53188668,203.93,203.92,0.063]
[1739208464371,11.90835668,203.93,203.92,0.063]
[1739208464554,25.32020521,203.93,203.92,0.063]
[1739208464751,0.37647,203.85,203.84,0.0006]
[1739208465061,13.66282853,203.81,203.71,0.063]
[1739208465250,4.14,203.85,203.76,11.53188668]
[1739208465451,11.53188668,203.83,203.74,11.53188668]
[1739208466672,11.53188668,203.79,203.72,1.5158]
[1739208466875,11.53188668,203.77,203.72,1.5158]
[1739208467247,11.53188668,203.81,203.72,13.04768668]
[1739208467469,11.53188668,203.81,203.74,11.53188668]
[1739208468345,11.53188668,203.81,203.72,13.04768668]
[1739208468539,11.53188668,203.79,203.72,13.04768668]